{"text_format":"1","workbook":"xlsx","n_sheets":1,"sheets":["غياب"],"not_rendered":{"charts":0,"images":0,"macros":1,"external_links":0,"defined_names":0,"comments":0,"pivot_tables":0},"unopened":[],"bounds":{"document_bytes":16777216,"sheet_cells":100000,"rows_first":2000,"rows_last":500,"rows_between":2000,"halvings":0,"cell_chars":16384,"cell_head_chars":4096},"cells_cut":0,"cells_raw":0,"read":"whole","date_system":"1900"}

{"sheet":"غياب","index":0,"n_rows":38,"n_cols":39,"rows_kept":38,"cut":false,"hidden":false,"merged":[]}
[]
[]
[]
[]
[]
[]
[null,"البــــــــــــيانــــــــــــات",null,null,"الإثنين","الثلاثاء","الأربعاء","الخميس","الجمعة","السبت","الأحد","الإثنين","الثلاثاء","الأربعاء","الخميس","الجمعة","السبت","الأحد","الإثنين","الثلاثاء","الأربعاء","الخميس","الجمعة","السبت","الأحد","الإثنين","الثلاثاء","الأربعاء","الخميس","الجمعة","السبت","الأحد","الإثنين","الثلاثاء","الأربعاء","غائب","مجاز","انذار"]
[null,"ت","قيده","الاسم",1,2,3,4,5,6,7,8,9,10,11,12,13,14,15,16,17,18,19,20,21,22,23,24,25,26,27,28,29,30,31,"غ","م"]
[null,1,100,"احمد1",null,null,null,null,null,null,null,null,null,null,null,null,null,null,null,null,null,null,null,null,null,null,null,null,null,null,null,null,null,null,null,{"$f":"COUNTIF(E9:AI9,\"*\"&AJ$8&\"*\")","v":0},null,null,"هنا موجود كود عند الضغط على الخلية يكتب غ "]
[null,2,101,"احمد2",null,null,null,null,null,null,null,null,null,null,null,null,null,null,null,null,null,null,null,null,null,null,null,null,null,null,null,null,null,null,null,{"$f":"COUNTIF(E10:AI10,\"*\"&AJ$8&\"*\")","v":0}]
[null,3,102,"احمد3",null,null,null,null,null,null,null,null,null,null,null,null,null,null,null,null,null,null,"غ",null,null,null,null,null,null,null,null,null,null,null,null,1,null,null,"المطلوب الخلايا التي لاتوجد فيها غ توضع في باقي الخلايا علامة الصح  √       لكل الخلايا ماعدا المكتوب فيها غ"]
[null,4,103,"احمد4",null,null,null,null,null,null,null,null,null,null,null,"غ",null,null,null,null,"غ",null,null,null,null,null,null,null,null,null,null,null,null,null,null,2]
[null,5,104,"احمد5",null,null,null,null,null,null,null,null,null,null,null,null,null,null,null,null,null,null,null,null,null,null,"غ",null,null,null,null,null,null,null,null,1]
[null,6,105,"احمد6",null,null,null,null,null,null,null,null,null,null,null,"غ",null,null,null,null,null,null,null,null,null,null,null,null,null,null,null,null,null,null,null,1,null,null,"وضع رمز  √  في الخلايا التي لاتحتوي حرف غ"]
[null,7,106,"احمد7",null,null,null,null,null,null,null,null,null,null,null,null,null,null,null,null,null,"غ",null,null,null,null,null,null,null,null,null,null,null,null,null,1]
[null,8,107,"احمد8",null,null,null,null,null,null,"غ",null,null,null,null,null,null,null,null,null,null,null,null,null,null,null,null,null,null,null,null,null,null,null,null,1]
[null,9,108,"احمد9",null,null,null,null,null,null,null,null,null,null,null,null,null,null,null,null,null,null,null,null,"غ",null,"غ",null,null,null,null,null,null,null,null,2]
[null,10,109,"احمد10",null,null,null,null,null,null,null,null,null,null,null,null,null,null,null,null,null,null,null,null,null,null,null,null,null,null,null,null,null,null,null,0]
[null,11,110,"احمد11",null,null,null,null,null,null,null,"غ",null,null,null,null,null,null,null,null,null,null,null,null,null,null,null,null,null,null,null,null,null,null,null,1]
[null,12,111,"احمد12",null,null,null,null,null,null,null,null,null,null,null,null,null,null,null,null,null,null,null,null,null,null,null,null,null,null,null,null,null,null,null,0]
[null,13,112,"احمد13",null,null,null,null,null,null,null,null,null,null,null,null,null,null,null,null,null,null,null,null,null,null,null,null,null,null,null,null,null,null,null,0]
[null,14,113,"احمد14",null,null,null,null,null,null,null,null,null,null,null,null,null,null,null,null,null,null,null,null,null,null,null,null,null,null,null,null,null,null,null,0]
[null,15,114,"احمد15",null,null,null,null,null,null,null,null,null,null,null,null,null,null,null,null,null,null,null,null,null,"غ",null,null,null,null,null,null,null,null,null,1]
[null,16,115,"احمد16",null,null,null,null,null,null,null,null,null,null,null,null,null,null,null,null,null,null,null,null,null,null,null,null,null,null,null,null,null,null,null,0]
[null,17,116,"احمد17",null,null,null,null,null,null,null,null,null,null,null,null,null,null,null,null,null,null,null,null,null,null,null,null,null,null,null,null,null,null,null,0]
[null,18,117,"احمد18",null,null,null,null,null,null,null,null,null,null,null,null,null,null,null,null,null,null,null,null,null,null,null,null,null,null,null,null,null,null,null,0]
[null,19,118,"احمد19",null,null,null,null,null,null,null,null,null,null,null,null,null,null,null,null,null,null,null,null,null,null,null,null,null,null,null,null,null,null,null,0]
[null,20,119,"احمد20",null,null,null,null,null,null,null,null,null,null,null,null,null,null,null,null,null,null,null,null,null,null,null,null,null,null,null,null,null,null,null,0]
[null,21,120,"احمد21",null,null,null,null,null,null,null,null,null,null,null,null,null,null,null,null,null,null,null,null,null,null,null,null,null,null,null,null,null,null,null,0]
[null,22,121,"احمد22",null,null,null,null,null,null,null,null,null,null,null,null,null,null,null,null,null,null,null,null,null,null,null,null,null,null,null,null,null,null,null,0]
[null,23,122,"احمد23",null,null,null,null,null,null,null,null,null,null,null,null,null,null,null,null,null,null,null,null,null,null,null,null,null,null,null,null,null,null,null,0]
[null,24,123,"احمد24",null,null,null,null,null,null,null,null,null,null,null,null,null,null,null,null,null,null,null,null,null,null,null,null,null,null,null,null,null,null,null,0]
[null,25,124,"احمد25",null,null,null,null,null,null,null,null,null,null,null,null,null,null,null,null,null,null,null,null,null,null,null,null,null,null,null,null,null,null,null,0]
[null,26,125,"احمد26",null,null,null,null,null,null,null,null,null,null,null,null,null,null,null,null,null,null,null,null,null,null,null,null,null,null,null,null,null,null,null,0]
[null,27,126,"احمد27",null,null,null,null,null,null,null,null,null,null,null,null,null,null,null,null,null,null,null,null,null,null,null,null,null,null,null,null,null,null,null,0]
[null,28,127,"احمد28",null,null,null,null,null,null,null,null,null,null,null,null,null,null,null,null,null,null,null,null,null,null,null,null,null,null,null,null,null,null,null,0]
[null,29,128,"احمد29",null,null,null,null,null,null,null,null,null,null,null,null,null,null,null,null,null,null,null,null,null,null,null,null,null,null,null,null,null,null,null,0]
[null,30,129,"احمد30",null,null,null,null,null,null,null,null,null,null,null,null,null,null,null,null,null,null,null,null,null,null,null,null,null,null,null,null,null,null,null,0]